fUST/lending_fUST_20240703
["ID","MTS","AMOUNT","RATE_DAILY","PERIOD"]
[330945085,1719960640972,-500.0,0.00014055,2]
[330945086,1719960640982,-500.0,0.00014055,2]
[330945087,1719960640991,-500.0,0.00014055,2]
[330945088,1719960641001,-500.0,0.00014055,2]
[330945089,1719960641013,-500.0,0.00014055,2]
[330945090,1719960641024,-500.0,0.00014055,2]
[330945091,1719960641034,-500.0,0.00014055,2]
[330945092,1719960641045,-500.0,0.00014055,2]
[330945093,1719960641055,-500.0,0.00014055,2]
[330945094,1719960641066,-500.0,0.00014055,2]
[330945095,1719960641076,-500.0,0.00014055,2]
[330945096,1719960641087,-500.0,0.00014055,2]
[330945097,1719960641096,-506.06433584,0.00014055,2]
[330945098,1719960641110,-500.0,0.00014055,2]
[330945099,1719960641121,-500.0,0.00014055,2]
[330945100,1719960641131,-500.0,0.00014055,2]
[330945101,1719960641142,-500.0,0.00014055,2]
[330945102,1719960641151,-63.79051683,0.00014055,2]
[330945103,1719960641163,-436.20948317,0.00014055,2]
[330945104,1719960641173,-500.0,0.00014055,2]
[330945105,1719960641182,-500.0,0.00014055,2]
[330945106,1719960641191,-500.0,0.00014055,2]
[330945107,1719960641201,-155.01792194,0.00014055,2]
[330945108,1719960641211,-500.0,0.00014055,2]
[330945109,1719960641221,-500.0,0.00014055,2]
[330945110,1719960641231,-500.0,0.00014055,2]
[330945111,1719960641240,-523.47,0.00014055,2]
[330945112,1719960641249,-500.0,0.00014055,2]
[330945113,1719960641260,-513.28,0.00014055,2]
[330945114,1719960641270,-500.0,0.00014055,2]
[330945115,1719960641280,-620.97,0.00014055,2]
[330945116,1719960641289,-500.0,0.00014055,2]
[330945117,1719960641300,-530.4,0.00014055,2]
[330945118,1719960641310,-500.0,0.00014055,2]
[330945119,1719960641319,-301.98650869,0.00014055,2]
[330945120,1719960641328,-4862.25,0.00014055,2]
[330945121,1719960641337,-500.0,0.00014055,2]
[330945122,1719960641348,-500.0,0.00014055,2]
[330945123,1719960641359,-761.32,0.00014055,2]
[330945124,1719960641368,-500.0,0.00014055,2]
[330945125,1719960641378,-898.54,0.00014055,2]
[330945126,1719960641387,-943.14513498,0.00014055,2]
[330945127,1719960641401,-500.0,0.00014056,2]
[330945128,1719960641410,-500.0,0.00014056,2]
[330945129,1719960641420,-500.0,0.00014056,2]
[330945130,1719960641429,-500.0,0.00014056,2]
[330945131,1719960641440,-500.0,0.00014056,2]
[330945132,1719960641449,-500.0,0.00014056,2]
[330945133,1719960641458,-500.0,0.00014056,2]
[330945134,1719960641467,-613.85,0.00014056,2]
[330945135,1719960641480,-500.0,0.00014056,2]
[330945136,1719960641490,-500.0,0.00014056,2]
[330945137,1719960641500,-737.29,0.00014056,2]
[330945138,1719960641509,-500.0,0.00014056,2]
[330945139,1719960641519,-500.0,0.00014056,2]
[330945140,1719960641528,-87.53861935,0.00014056,2]
[330945193,1719960643009,-498.02138065,0.00014056,2]
[330945195,1719960643019,-500.0,0.00014056,2]
[330945197,1719960643029,-500.0,0.00014056,2]
[330945198,1719960643039,-536.43,0.00014056,2]
[330945199,1719960643048,-351.62336791,0.00014056,2]
[330945208,1719960643184,-500.0,0.00014053,2]
[330945210,1719960643193,-148.37663209,0.00014056,2]
[330945212,1719960643202,-574.1,0.00014056,2]
[330945213,1719960643212,-5545.1964303,0.00014057,2]
[330945270,1719960660281,2966.9686185,0.00013067,2]
[330945271,1719960698710,155.06488944,9.999e-05,2]
[330945273,1719960943673,1285.92777043,9.999e-05,2]
[330945289,1719961002120,1285.92777043,0.0001212,2]
[330945297,1719961196503,20000.0,0.00022,30]
[330945300,1719961266235,2826.6457878,0.00013055,2]
[330945301,1719961275817,154.86836189,0.00022,30]
[330945303,1719961290765,154.86836189,0.00022,30]
[330945304,1719961335154,5287.92984094,0.00013783,2]
[330945311,1719961574503,150.0,0.00014001,2]
[330945312,1719961618070,184.09063736,0.00013952,2]
[330945318,1719961716362,-300.0,0.00014051,2]
[330945319,1719961716393,-300.0,0.00014051,2]
[330945320,1719961716422,-101.28050936,0.00014052,2]
[330945321,1719961716455,-398.71949064,0.00014052,2]
[330945322,1719961716484,-9.08741972,0.00014052,2]
[330945323,1719961740941,-235.27258028,0.00014052,2]
[330945324,1719961740972,-488.18967747,0.00014052,2]
[330945325,1719961741017,-11.81032253,0.00014052,2]
[330945326,1719961741048,-516.62577717,0.00014052,2]
[330945327,1719961766010,-300.0,0.00014051,2]
[330945328,1719961766037,-300.0,0.00014051,2]
[330945329,1719961766065,-148.5002249,0.00014051,2]
[330945330,1719961766130,-351.4997751,0.00014051,2]
[330945331,1719961766158,-370.86397105,0.00014051,2]
[330945332,1719961790919,-129.13602895,0.00014051,2]
[330945333,1719961790949,-648.78147537,0.00014051,2]
[330945334,1719961790986,-649.27743906,0.00014051,2]
[330945336,1719961821836,5287.92984094,0.00013854,2]
[330945490,1719961834459,-173.99108557,0.00014051,2]
[330945491,1719961834468,-300.0,0.00014051,2]
[330945493,1719961834478,-300.0,0.00014051,2]
[330945495,1719961834488,-500.0,0.00014051,2]
[330945496,1719961834497,-556.86,0.00014051,2]
[330945497,1719961834507,-9807.34,0.00014051,2]
[330945498,1719961834517,-383.59422283,0.00014052,2]
[330945499,1719961834526,-500.0,0.00014052,2]
[330945500,1719961834537,-500.0,0.00014052,2]
[330945501,1719961834547,-500.0,0.00014052,2]
[330945502,1719961834557,-500.0,0.00014052,2]
[330945503,1719961834568,-500.0,0.00014052,2]
[330945504,1719961834577,-500.0,0.00014052,2]
[330945505,1719961834587,-500.0,0.00014052,2]
[330945506,1719961834597,-543.82,0.00014052,2]
[330945507,1719961834607,-500.0,0.00014052,2]
[330945508,1719961834616,-500.0,0.00014052,2]
[330945509,1719961834627,-1309.17,0.00014052,2]
[330945510,1719961834637,-500.0,0.00014052,2]
[330945511,1719961834647,-500.0,0.00014052,2]
[330945512,1719961834656,-500.0,0.00014052,2]
[330945513,1719961834666,-500.0,0.00014052,2]
[330945514,1719961834675,-566.62,0.00014052,2]
[330945515,1719961834684,-500.0,0.00014052,2]
[330945516,1719961834695,-500.0,0.00014052,2]
[330945517,1719961834705,-877.69,0.00014052,2]
[330945518,1719961834714,-161.09139344,0.00014052,2]
[330945519,1719961834726,-828.77682236,0.00014052,2]
[330945611,1719961841905,-135.8117842,0.00014052,2]
[330945612,1719961841916,-501.74309777,0.00014052,2]
[330945613,1719961841928,-500.0,0.00014052,2]
[330945614,1719961841939,-501.89316035,0.00014052,2]
[330945615,1719961841949,-500.0,0.00014052,2]
[330945616,1719961841959,-500.0,0.00014052,2]
[330945617,1719961841970,-500.0,0.00014052,2]
[330945618,1719961841980,-500.0,0.00014052,2]
[330945619,1719961841991,-554.25,0.00014052,2]
[330945620,1719961842001,-500.0,0.00014052,2]
[330945621,1719961842012,-503.31674977,0.00014052,2]
[330945622,1719961842022,-500.0,0.00014052,2]
[330945623,1719961842033,-500.0,0.00014052,2]
[330945624,1719961842044,-640.04,0.00014052,2]
[330945625,1719961842055,-500.0,0.00014052,2]
[330945626,1719961842066,-507.82319642,0.00014052,2]
[330945627,1719961842078,-500.0,0.00014052,2]
[330945628,1719961842090,-500.0,0.00014052,2]
[330945629,1719961842101,-696.22,0.00014052,2]
[330945630,1719961842111,-500.0,0.00014052,2]
[330945631,1719961842121,-500.0,0.00014052,2]
[330945632,1719961842131,-500.0,0.00014052,2]
[330945633,1719961842143,-500.0,0.00014052,2]
[330945634,1719961842153,-1162.07,0.00014052,2]
[330945635,1719961842164,-500.0,0.00014052,2]
[330945636,1719961842175,-500.0,0.00014052,2]
[330945637,1719961842186,-500.0,0.00014052,2]
[330945638,1719961842196,-500.0,0.00014052,2]
[330945639,1719961842206,-500.0,0.00014052,2]
[330945640,1719961842216,-500.0,0.00014052,2]
[330945641,1719961842226,-500.0,0.00014052,2]
[330945642,1719961842237,-3756.51,0.00014052,2]
[330945643,1719961842247,-518.78,0.00014052,2]
[330945644,1719961842257,-500.0,0.00014052,2]
[330945645,1719961842268,-2165.7,0.00014052,2]
[330945646,1719961842278,-500.0,0.00014052,2]
[330945647,1719961842288,-500.0,0.00014052,2]
[330945648,1719961842299,-500.0,0.00014052,2]
[330945649,1719961842309,-500.0,0.00014052,2]
[330945650,1719961842320,-500.0,0.00014052,2]
[330945651,1719961842331,-564.07655874,0.00014052,2]
[330945652,1719961842342,-500.0,0.00014052,2]
[330945653,1719961842352,-500.0,0.00014052,2]
[330945654,1719961842363,-500.0,0.00014052,2]
[330945655,1719961842373,-500.0,0.00014052,2]
[330945656,1719961842384,-500.0,0.00014052,2]
[330945657,1719961842394,-500.0,0.00014052,2]
[330945658,1719961842404,-1007.24,0.00014052,2]
[330945659,1719961842415,-500.0,0.00014052,2]
[330945660,1719961842426,-500.0,0.00014052,2]
[330945661,1719961842436,-500.0,0.00014052,2]
[330945662,1719961842446,-1178.79,0.00014052,2]
[330945663,1719961842456,-625.62,0.00014052,2]
[330945664,1719961842467,-500.0,0.00014052,2]
[330945665,1719961842477,-500.0,0.00014052,2]
[330945666,1719961842487,-888.76,0.00014052,2]
[330945667,1719961842498,-500.0,0.00014052,2]
[330945668,1719961842508,-500.0,0.00014052,2]
[330945669,1719961842518,-500.0,0.00014052,2]
[330945670,1719961842529,-500.0,0.00014052,2]
[330945671,1719961842540,-500.0,0.00014052,2]
[330945672,1719961842551,-4448.75,0.00014052,2]
[330945673,1719961842561,-500.0,0.00014052,2]
[330945674,1719961842572,-500.0,0.00014052,2]
[330945675,1719961842583,-500.0,0.00014052,2]
[330945676,1719961842594,-542.0,0.00014052,2]
[330945677,1719961842605,-500.0,0.00014052,2]
[330945678,1719961842615,-500.0,0.00014052,2]
[330945679,1719961842626,-500.0,0.00014052,2]
[330945680,1719961842637,-7944.73,0.00014052,2]
[330945681,1719961842648,-2163.61,0.00014052,2]
[330945682,1719961842660,-501.51090296,0.00014052,2]
[330945683,1719961842830,-500.0,0.00014052,2]
[330945684,1719961842843,-513.99284798,0.00014052,2]
[330945685,1719961842854,-501.50568853,0.00014052,2]
[330945686,1719961842864,-500.0,0.00014052,2]
[330945687,1719961842875,-722.29,0.00014052,2]
[330945688,1719961842885,-500.0,0.00014052,2]
[330945693,1719961842894,-500.0,0.00014052,2]
[330945696,1719961842904,-593.64,0.00014052,2]
[330945699,1719961842913,-500.0,0.00014052,2]
[330945702,1719961842922,-503.95554414,0.00014052,2]
[330945704,1719961842931,-500.0,0.00014052,2]
[330945705,1719961842942,-500.0,0.00014052,2]
[330945706,1719961842951,-500.0,0.00014052,2]
[330945707,1719961842960,-2158.3,0.00014052,2]
[330945708,1719961842969,-503.19179824,0.00014052,2]
[330945709,1719961842979,-500.0,0.00014052,2]
[330945710,1719961842989,-500.0,0.00014052,2]
[330945711,1719961842998,-500.0,0.00014052,2]
[330945712,1719961843008,-1121.55,0.00014052,2]
[330945713,1719961843017,-500.0,0.00014052,2]
[330945714,1719961843026,-500.0,0.00014052,2]
[330945715,1719961843035,-500.0,0.00014052,2]
[330945716,1719961843044,-500.0,0.00014052,2]
[330945717,1719961843053,-500.0,0.00014052,2]
[330945718,1719961843061,-500.0,0.00014052,2]
[330945719,1719961843070,-500.0,0.00014052,2]
[330945720,1719961843079,-939.73,0.00014052,2]
[330945721,1719961843088,-680.83,0.00014052,2]
[330945722,1719961843097,-500.0,0.00014052,2]
[330945723,1719961843106,-3734.77,0.00014052,2]
[330945724,1719961843115,-358.75650226,0.00014052,2]
[330945725,1719961843127,-142.19332201,0.00014052,2]
[330945727,1719961843136,-995.62,0.00014052,2]
[330945728,1719961843145,-500.0,0.00014052,2]
[330945729,1719961843154,-500.0,0.00014052,2]
[330945730,1719961843163,-500.0,0.00014052,2]
[330945731,1719961843173,-500.0,0.00014052,2]
[330945733,1719961843181,-580.13,0.00014052,2]
[330945735,1719961843190,-500.0,0.00014052,2]
[330945737,1719961843199,-500.0,0.00014052,2]
[330945738,1719961843208,-579.48305805,0.00014052,2]
[330945739,1719961843217,-500.0,0.00014052,2]
[330945740,1719961843226,-52.13066342,0.00014053,2]
[330945741,1719961843708,-500.0,0.00014053,2]
[330945742,1719961843717,-500.0,0.00014053,2]
[330945743,1719961843727,-500.0,0.00014053,2]
[330945744,1719961843737,-500.0,0.00014053,2]
[330945745,1719961843747,-18.48391919,0.00014053,2]
[330945752,1719961846479,-481.51608081,0.00014053,2]
[330945753,1719961846489,-500.0,0.00014053,2]
[330945754,1719961846498,-500.0,0.00014053,2]
[330945755,1719961846507,-549.75,0.00014053,2]
[330945756,1719961846516,-500.0,0.00014053,2]
[330945757,1719961846526,-500.0,0.00014053,2]
[330945758,1719961846536,-500.0,0.00014053,2]
[330945759,1719961846545,-500.0,0.00014053,2]
[330945760,1719961846554,-500.0,0.00014053,2]
[330945761,1719961846563,-500.0,0.00014053,2]
[330945762,1719961846572,-500.0,0.00014053,2]
[330945763,1719961846581,-500.0,0.00014053,2]
[330945764,1719961846590,-500.0,0.00014053,2]
[330945765,1719961846598,-500.0,0.00014053,2]
[330945766,1719961846607,-500.0,0.00014053,2]
[330945767,1719961846616,-500.0,0.00014053,2]
[330945768,1719961846625,-603.10771606,0.00014053,2]
[330945769,1719961846634,-500.0,0.00014053,2]
[330945770,1719961846643,-478.98044168,0.00014053,2]
[330945771,1719961846652,-500.0,0.00014053,2]
[330945772,1719961846661,-415.53313475,0.00014053,2]
[330945773,1719961846670,-500.0,0.00014053,2]
[330945774,1719961846680,-505.63234199,0.00014053,2]
[330945775,1719961846690,-500.0,0.00014053,2]
[330945776,1719961846698,-500.0,0.00014053,2]
[330945777,1719961846708,-500.0,0.00014053,2]
[330945778,1719961846717,-500.0,0.00014053,2]
[330945779,1719961846726,-500.0,0.00014053,2]
[330945780,1719961846735,-500.0,0.00014053,2]
[330945781,1719961846744,-500.0,0.00014053,2]
[330945782,1719961846753,-500.0,0.00014053,2]
[330945783,1719961846763,-500.0,0.00014053,2]
[330945784,1719961846772,-500.0,0.00014053,2]
[330945785,1719961846781,-500.0,0.00014053,2]
[330945786,1719961846791,-500.0,0.00014053,2]
[330945787,1719961846804,-500.0,0.00014053,2]
[330945788,1719961846814,-504.04806494,0.00014053,2]
[330945789,1719961846823,-500.0,0.00014053,2]
[330945790,1719961846833,-500.0,0.00014053,2]
[330945791,1719961846843,-229.28273307,0.00014053,2]
[330945792,1719961846852,-500.0,0.00014053,2]
[330945793,1719961846861,-500.0,0.00014053,2]
[330945794,1719961846870,-500.0,0.00014053,2]
[330945795,1719961846881,-500.0,0.00014053,2]
[330945796,1719961846890,-538.13452789,0.00014053,2]
[330945797,1719961846899,-500.0,0.00014053,2]
[330945798,1719961846908,-500.0,0.00014053,2]
[330945799,1719961846917,-275.71977102,0.00014053,2]
[330945800,1719961849646,749.87,0.00010959,2]
[330945801,1719961854332,159.35965211,9.999e-05,2]
[330945802,1719962103175,396.97709099,0.0001212,2]
[330945803,1719962183438,161.07930769,0.00013952,2]
[330945805,1719962307621,206.82506441,0.0001,2]
[330945806,1719962357635,206.82506441,0.00012121,2]
[330945807,1719962381093,1356.97213035,0.00013908,2]
[330945808,1719962381122,3930.95771059,0.00013908,2]
[330945809,1719962418686,664.06383427,0.00013656,2]
[330945811,1719962489109,161.07930767,0.00013951,2]
[330945815,1719962606941,587.78939878,9.999e-05,2]
[330945816,1719962627810,500.0,0.00013948,2]
[330945824,1719962790160,161.07930767,0.0001395,2]
[330945832,1719962868247,3321.24287506,0.00013894,2]
[330945837,1719962979761,-700.50125752,0.00014048,2]
[330945838,1719962979823,-433.95007217,0.00014048,2]
[330945839,1719963005039,-723.19028411,0.00014048,2]
[330945840,1719963005155,-228.69243035,0.00014048,2]
[330945885,1719963032461,-1455.87295256,0.00014048,2]
[330945886,1719963032472,-300.0,0.00014048,2]
[330945888,1719963032481,-300.0,0.00014048,2]
[330945890,1719963032491,-337.25974118,0.00014049,2]
[330945892,1719963032499,-532.91,0.00014049,2]
[330945894,1719963032508,-1773.63,0.00014049,2]
[330945896,1719963032518,-500.0,0.00014049,2]
[330945898,1719963032527,-500.0,0.00014049,2]
[330945900,1719963032536,-391.13721182,0.00014049,2]
[330945902,1719963032545,-500.0,0.00014049,2]
[330945904,1719963032554,-500.0,0.00014049,2]
[330945906,1719963032563,-500.0,0.0001405,2]
[330945908,1719963032572,-531.68564142,0.0001405,2]
[330945910,1719963032581,-944.06,0.0001405,2]
[330945912,1719963032589,-500.0,0.0001405,2]
[330945914,1719963032598,-500.0,0.0001405,2]
[330945916,1719963032607,-500.0,0.0001405,2]
[330945918,1719963032616,-500.0,0.0001405,2]
[330945920,1719963032625,-500.0,0.0001405,2]
[330945922,1719963032634,-1489.7,0.0001405,2]
[330945924,1719963032643,-500.0,0.0001405,2]
[330945926,1719963032652,-500.0,0.0001405,2]
[330945928,1719963032660,-500.0,0.0001405,2]
[330945929,1719963032670,-500.0,0.0001405,2]
[330945932,1719963032679,-500.0,0.0001405,2]
[330945934,1719963032688,-941.45,0.0001405,2]
[330945935,1719963032698,-1215.66,0.0001405,2]
[330945938,1719963032707,-5794.82407508,0.0001405,2]
[330945940,1719963032721,-856.97317764,0.0001405,2]
[330946002,1719963042516,-4217.38493203,0.0001405,2]
[330946003,1719963042530,-172.57781525,0.0001405,2]
[330946004,1719963042540,-500.0,0.0001405,2]
[330946005,1719963042549,-1344.05,0.0001405,2]
[330946006,1719963042559,-2512.75,0.0001405,2]
[330946007,1719963042568,-500.0,0.0001405,2]
[330946008,1719963042578,-4121.67,0.0001405,2]
[330946009,1719963042587,-500.0,0.0001405,2]
[330946010,1719963042598,-500.0,0.0001405,2]
[330946011,1719963042607,-500.0,0.0001405,2]
[330946012,1719963042616,-765.72,0.0001405,2]
[330946013,1719963042627,-500.0,0.0001405,2]
[330946014,1719963042636,-500.0,0.0001405,2]
[330946015,1719963042646,-42.89929738,0.0001405,2]
[330946016,1719963042658,-254.09564291,0.0001405,2]
[330946017,1719963042730,-500.0,0.00014049,2]
[330946018,1719963042739,-796.39505971,0.0001405,2]
[330946019,1719963042749,-500.0,0.0001405,2]
[330946020,1719963042758,-500.0,0.0001405,2]
[330946021,1719963042768,-500.0,0.0001405,2]
[330946022,1719963042782,-500.0,0.0001405,2]
[330946023,1719963042798,-500.0,0.0001405,2]
[330946024,1719963042808,-500.0,0.0001405,2]
[330946025,1719963042818,-575.66,0.0001405,2]
[330946026,1719963042828,-500.0,0.0001405,2]
[330946027,1719963042838,-500.0,0.0001405,2]
[330946028,1719963042848,-500.0,0.0001405,2]
[330946029,1719963042858,-500.0,0.0001405,2]
[330946030,1719963042868,-1285.32,0.0001405,2]
[330946031,1719963042878,-500.0,0.0001405,2]
[330946032,1719963042888,-1029.72,0.0001405,2]
[330946033,1719963042898,-500.0,0.0001405,2]
[330946034,1719963042908,-500.0,0.0001405,2]
[330946035,1719963042917,-5048.74,0.0001405,2]
[330946036,1719963042927,-500.0,0.0001405,2]
[330946037,1719963042936,-2436.37,0.0001405,2]
[330946038,1719963042946,-678.32,0.0001405,2]
[330946040,1719963042956,-500.0,0.0001405,2]
[330946042,1719963042965,-500.0,0.0001405,2]
[330946044,1719963042976,-500.0,0.0001405,2]
[330946046,1719963042986,-500.0,0.0001405,2]
[330946048,1719963042995,-2418.18,0.0001405,2]
[330946050,1719963043006,-306.49630195,0.0001405,2]
[330946052,1719963043020,-193.50369805,0.0001405,2]
[330946054,1719963043030,-8572.05,0.0001405,2]
[330946057,1719963043050,-500.0,0.0001405,2]
[330946060,1719963043066,-500.0,0.0001405,2]
[330946063,1719963043081,-1226.08,0.0001405,2]
[330946064,1719963043097,-430.77333125,0.0001405,2]
[330946139,1719963043845,-500.0,0.00014049,2]
[330946140,1719963043855,-69.22666875,0.0001405,2]
[330946141,1719963043867,-470.54333125,0.0001405,2]
[330946165,1719963046876,-29.45666875,0.0001405,2]
[330946166,1719963046886,-500.0,0.0001405,2]
[330946167,1719963046896,-506.88308617,0.0001405,2]
[330946168,1719963046905,-720.69,0.0001405,2]
[330946169,1719963046915,-554.32,0.0001405,2]
[330946170,1719963046924,-500.0,0.0001405,2]
[330946171,1719963046933,-500.0,0.0001405,2]
[330946172,1719963046943,-500.0,0.0001405,2]
[330946173,1719963047113,-500.0,0.0001405,2]
[330946174,1719963047129,-500.0,0.0001405,2]
[330946175,1719963047139,-735.7,0.0001405,2]
[330946176,1719963047149,-1099.41,0.0001405,2]
[330946177,1719963047158,-500.0,0.0001405,2]
[330946178,1719963047173,-500.0,0.0001405,2]
[330946179,1719963047183,-500.0,0.0001405,2]
[330946180,1719963047191,-500.0,0.0001405,2]
[330946181,1719963047201,-500.0,0.0001405,2]
[330946182,1719963047212,-500.0,0.0001405,2]
[330946183,1719963047221,-387.46620817,0.0001405,2]
[330946184,1719963047231,-4109.54,0.0001405,2]
[330946185,1719963047239,-500.0,0.00014051,2]
[330946186,1719963047249,-500.0,0.00014051,2]
[330946187,1719963047259,-500.0,0.00014051,2]
[330946188,1719963047269,-500.0,0.00014051,2]
[330946189,1719963047278,-500.0,0.00014051,2]
[330946190,1719963047289,-500.0,0.00014051,2]
[330946191,1719963047299,-500.0,0.00014051,2]
[330946192,1719963047309,-500.0,0.00014051,2]
[330946193,1719963047321,-500.0,0.00014051,2]
[330946194,1719963047331,-500.0,0.00014051,2]
[330946195,1719963047343,-500.0,0.00014051,2]
[330946196,1719963047353,-500.0,0.00014051,2]
[330946197,1719963047363,-500.0,0.00014051,2]
[330946198,1719963047373,-500.0,0.00014051,2]
[330946199,1719963047383,-500.0,0.00014051,2]
[330946200,1719963047395,-500.0,0.00014051,2]
[330946201,1719963047407,-500.0,0.00014051,2]
[330946202,1719963047416,-509.42607985,0.00014051,2]
[330946203,1719963047425,-500.0,0.00014051,2]
[330946204,1719963047435,-507.83332134,0.00014051,2]
[330946205,1719963047445,-500.0,0.00014051,2]
[330946206,1719963047456,-502.1526192,0.00014051,2]
[330946207,1719963047465,-3725.49,0.00014051,2]
[330946208,1719963047476,-500.0,0.00014051,2]
[330946209,1719963047486,-503.12328821,0.00014051,2]
[330946210,1719963047495,-500.0,0.00014051,2]
[330946211,1719963047504,-900.57,0.00014051,2]
[330946212,1719963047514,-1011.2,0.00014051,2]
[330946213,1719963047523,-500.0,0.00014051,2]
[330946214,1719963047532,-500.0,0.00014051,2]
[330946215,1719963047542,-500.0,0.00014051,2]
[330946216,1719963047552,-500.0,0.00014051,2]
[330946217,1719963047562,-601.31,0.00014051,2]
[330946218,1719963047572,-502.23915687,0.00014051,2]
[330946219,1719963047583,-500.0,0.00014051,2]
[330946220,1719963047592,-500.0,0.00014051,2]
[330946221,1719963047602,-500.80688013,0.00014051,2]
[330946222,1719963047611,-500.0,0.00014051,2]
[330946223,1719963047620,-503.51893587,0.00014051,2]
[330946224,1719963047630,-500.0,0.00014051,2]
[330946225,1719963047640,-500.0,0.00014051,2]
[330946226,1719963047650,-956.35,0.00014051,2]
[330946227,1719963047659,-956.35,0.00014051,2]
[330946228,1719963047669,-500.0,0.00014051,2]
[330946229,1719963047679,-500.0,0.00014051,2]
[330946230,1719963047690,-500.0,0.00014051,2]
[330946231,1719963047702,-500.0,0.00014051,2]
[330946232,1719963047712,-500.0,0.00014051,2]
[330946233,1719963047722,-500.0,0.00014051,2]
[330946234,1719963047731,-500.0,0.00014051,2]
[330946235,1719963047741,-500.0,0.00014051,2]
[330946236,1719963047750,-500.0,0.00014051,2]
[330946237,1719963047760,-169.57752147,0.00014051,2]
[330946238,1719963047769,-502.96937943,0.00014051,2]
[330946239,1719963047778,-500.0,0.00014051,2]
[330946240,1719963047787,-500.0,0.00014051,2]
[330946241,1719963047796,-504.12645499,0.00014051,2]
[330946242,1719963047806,-500.0,0.00014051,2]
[330946243,1719963047815,-500.0,0.00014051,2]
[330946244,1719963047825,-538.82842922,0.00014051,2]
[330946245,1719963047835,-523.45,0.00014051,2]
[330946246,1719963047844,-500.0,0.00014051,2]
[330946247,1719963047856,-500.0,0.00014051,2]
[330946248,1719963047866,-500.0,0.00014051,2]
[330946249,1719963047876,-236.91671621,0.00014051,2]
[330946250,1719963047885,-500.0,0.00014051,2]
[330946251,1719963047894,-500.0,0.00014051,2]
[330946252,1719963047903,-500.0,0.00014051,2]
[330946253,1719963047912,-503.08456191,0.00014051,2]
[330946254,1719963047924,-500.0,0.00014051,2]
[330946255,1719963047933,-500.0,0.00014051,2]
[330946256,1719963047943,-500.0,0.00014051,2]
[330946257,1719963047952,-392.40600233,0.00014051,2]
[330946258,1719963047961,-504.73900056,0.00014051,2]
[330946259,1719963047971,-500.0,0.00014051,2]
[330946260,1719963047982,-500.0,0.00014051,2]
[330946261,1719963047992,-500.0,0.00014051,2]
[330946262,1719963048002,-500.0,0.00014051,2]
[330946263,1719963048011,-500.0,0.00014051,2]
[330946264,1719963048022,-500.0,0.00014051,2]
[330946265,1719963048032,-500.0,0.00014051,2]
[330946266,1719963048041,-503.61881142,0.00014051,2]
[330946267,1719963048051,-230.64,0.00014051,2]
[330946268,1719963048061,-506.54465184,0.00014051,2]
[330946269,1719963048071,-500.0,0.00014051,2]
[330946270,1719963048081,-500.0,0.00014051,2]
[330946271,1719963048090,-508.93042201,0.00014051,2]
[330946272,1719963048100,-500.0,0.00014051,2]
[330946273,1719963048109,-500.0,0.00014051,2]
[330946274,1719963048120,-500.0,0.00014051,2]
[330946275,1719963048129,-503.28794305,0.00014051,2]